[Event "Titled Tuesday Blitz June 6 Early 2023"]
[White "Napoli, Nicolo"]
[Black "Balla, Tamas-Kristof"]
[WhiteFideId "813702"]
[BlackFideId "1208497"]
[WhiteElo "2308"]
[BlackElo "2334"]
[Result "1-0"]
[Round "3"]
[TimeControl "180+2"]
[Date "2023.06.06"]
[WhiteClock "0:00:36"]
[BlackClock "0:00:08"]
[Board "161"]

1. e4 {[%clk 0:03:00]}  c5 {[%clk 0:02:56]} 2. Nf3 {[%clk 0:03:00]}  Nc6 {[%clk 0:02:56]} 3. c3 {[%clk 0:03:00]}  Nf6 {[%clk 0:02:54]} 4. e5 {[%clk 0:03:00]}  Nd5 {[%clk 0:02:54]} 5. d4 {[%clk 0:03:00]}  cxd4 {[%clk 0:02:55]} 6. cxd4 {[%clk 0:03:01]}  d6 {[%clk 0:02:55]} 7. exd6 {[%clk 0:02:54]}  e6 {[%clk 0:02:54]} 8. Nc3 {[%clk 0:02:54]}  Bxd6 {[%clk 0:02:52]} 9. Bc4 {[%clk 0:02:51]}  O-O {[%clk 0:02:34]} 10. O-O {[%clk 0:02:50]}  b6 {[%clk 0:02:14]} 11. h3 {[%clk 0:02:36]}  Bb7 {[%clk 0:02:12]} 12. Nxd5 {[%clk 0:02:31]}  Na5 {[%clk 0:01:38]} 13. Ne3 {[%clk 0:02:13]}  Rc8 {[%clk 0:01:18]} 14. Bd3 {[%clk 0:02:10]}  Bb8 {[%clk 0:01:10]} 15. Ng4 {[%clk 0:01:54]}  Nc4 {[%clk 0:01:01]} 16. Nge5 {[%clk 0:01:43]}  Nxe5 {[%clk 0:00:41]} 17. Nxe5 {[%clk 0:01:30]}  Qd5 {[%clk 0:00:27]} 18. Qf3 {[%clk 0:01:19]}  Qxd4 {[%clk 0:00:26]} 19. Qxb7 {[%clk 0:01:09]}  Qxe5 {[%clk 0:00:25]} 20. g3 {[%clk 0:01:09]}  Qd4 {[%clk 0:00:20]} 21. Qe4 {[%clk 0:01:07]}  Qxe4 {[%clk 0:00:14]} 22. Bxe4 {[%clk 0:01:08]}  f5 {[%clk 0:00:13]} 23. Bd3 {[%clk 0:01:04]}  f4 {[%clk 0:00:12]} 24. Bxf4 {[%clk 0:01:02]}  Bxf4 {[%clk 0:00:13]} 25. gxf4 {[%clk 0:01:03]}  Rxf4 {[%clk 0:00:13]} 26. Rfe1 {[%clk 0:01:01]}  Rcf8 {[%clk 0:00:13]} 27. Re2 {[%clk 0:00:56]}  e5 {[%clk 0:00:13]} 28. Rf1 {[%clk 0:00:56]}  Rf3 {[%clk 0:00:13]} 29. Bc4+ {[%clk 0:00:55]}  Kh8 {[%clk 0:00:13]} 30. Rxe5 {[%clk 0:00:55]}  Rxh3 {[%clk 0:00:13]} 31. Kg2 {[%clk 0:00:55]}  Rh4 {[%clk 0:00:12]} 32. Be6 {[%clk 0:00:52]}  h6 {[%clk 0:00:12]} 33. Re3 {[%clk 0:00:49]}  Rhf4 {[%clk 0:00:12]} 34. Bd5 {[%clk 0:00:48]}  R8f5 {[%clk 0:00:12]} 35. Re8+ {[%clk 0:00:39]}  Kh7 {[%clk 0:00:12]} 36. Be4 {[%clk 0:00:38]}  Rxe4 {[%clk 0:00:08]} 37. Rxe4 {[%clk 0:00:38]}  Rg5+ {[%clk 0:00:09]} 38. Kf3 {[%clk 0:00:38]}  Rb5 {[%clk 0:00:09]} 39. b3 {[%clk 0:00:37]}  Rc5 {[%clk 0:00:09]} 40. Rc4 {[%clk 0:00:37]}  Rd5 {[%clk 0:00:10]} 41. Re1 {[%clk 0:00:37]}  Rd2 {[%clk 0:00:10]} 42. Re2 {[%clk 0:00:37]}  Rd3+ {[%clk 0:00:10]} 43. Kg2 {[%clk 0:00:37]}  Rd6 {[%clk 0:00:11]} 44. Rc7 {[%clk 0:00:37]}  Rg6+ {[%clk 0:00:11]} 45. Kf1 {[%clk 0:00:37]}  a5 {[%clk 0:00:12]} 46. Ree7 {[%clk 0:00:37]}  h5 {[%clk 0:00:10]} 47. Re4 {[%clk 0:00:36]}  Kh6 {[%clk 0:00:11]} 48. Rce7 {[%clk 0:00:36]}  Kg5 {[%clk 0:00:09]} 49. R7e5+ {[%clk 0:00:36]}  Kh6 {[%clk 0:00:08]} 50. Re6 {[%clk 0:00:36]} 1-0


[Site "https://www.chess.com"]

[Event "Titled Tuesday Blitz June 6 Early 2023"]
[White "Fier, Alexandr"]
[Black "Amitpal, Singh"]
[WhiteFideId "2107139"]
[BlackFideId "5012899"]
[WhiteElo "2610"]
[BlackElo "2107"]
[Result "1-0"]
[Round "3"]
[TimeControl "180+2"]
[Date "2023.06.06"]
[WhiteClock "0:02:59"]
[BlackClock "0:02:39"]
[Board "165"]

1. d4 {[%clk 0:03:00]}  Nf6 {[%clk 0:02:59]} 2. Bg5 {[%clk 0:03:01]}  c5 {[%clk 0:02:58]} 3. dxc5 {[%clk 0:03:00]}  Qa5+ {[%clk 0:02:57]} 4. Nc3 {[%clk 0:03:00]}  Qxc5 {[%clk 0:02:58]} 5. Qd2 {[%clk 0:03:01]}  e6 {[%clk 0:02:53]} 6. e4 {[%clk 0:03:01]}  Be7 {[%clk 0:02:52]} 7. O-O-O {[%clk 0:03:00]}  Nc6 {[%clk 0:02:52]} 8. f4 {[%clk 0:03:00]}  d6 {[%clk 0:02:50]} 9. Nf3 {[%clk 0:03:01]}  Bd7 {[%clk 0:02:49]} 10. e5 {[%clk 0:03:00]}  Ng4 {[%clk 0:02:39]} 11. Bxe7 {[%clk 0:02:59]}  Nxe7 {[%clk 0:02:39]} 12. Ne4 {[%clk 0:02:59]} 1-0


[Site "https://www.chess.com"]

[Event "Titled Tuesday Blitz June 6 Early 2023"]
[White "Matinian, Nikita"]
[Black "Floresvillar Gonzalez, Luis Migu"]
[WhiteFideId "24129100"]
[BlackFideId "5100542"]
[WhiteElo "2422"]
[BlackElo "2040"]
[Result "1-0"]
[Round "3"]
[TimeControl "180+2"]
[Date "2023.06.06"]
[WhiteClock "0:02:32"]
[BlackClock "0:01:12"]
[Board "166"]

1. e4 {[%clk 0:03:00]}  c6 {[%clk 0:02:54]} 2. Nc3 {[%clk 0:03:00]}  d5 {[%clk 0:02:54]} 3. Nf3 {[%clk 0:03:01]}  dxe4 {[%clk 0:02:53]} 4. Nxe4 {[%clk 0:03:01]}  Bg4 {[%clk 0:02:53]} 5. h3 {[%clk 0:02:59]}  Bxf3 {[%clk 0:02:52]} 6. Qxf3 {[%clk 0:03:00]}  Nd7 {[%clk 0:02:51]} 7. b3 {[%clk 0:02:58]}  Ngf6 {[%clk 0:02:49]} 8. Bb2 {[%clk 0:02:57]}  Nxe4 {[%clk 0:02:45]} 9. Qxe4 {[%clk 0:02:57]}  e6 {[%clk 0:02:37]} 10. O-O-O {[%clk 0:02:54]}  Nf6 {[%clk 0:02:33]} 11. Qf3 {[%clk 0:02:52]}  Qd5 {[%clk 0:02:31]} 12. Qxd5 {[%clk 0:02:52]}  cxd5 {[%clk 0:02:30]} 13. Bb5+ {[%clk 0:02:52]}  Kd8 {[%clk 0:02:22]} 14. f4 {[%clk 0:02:52]}  a6 {[%clk 0:02:21]} 15. Bd3 {[%clk 0:02:50]}  Ne4 {[%clk 0:02:05]} 16. Rhf1 {[%clk 0:02:50]}  f5 {[%clk 0:02:04]} 17. Bxe4 {[%clk 0:02:46]}  dxe4 {[%clk 0:01:57]} 18. d3 {[%clk 0:02:46]}  exd3 {[%clk 0:01:55]} 19. Rxd3+ {[%clk 0:02:47]}  Ke8 {[%clk 0:01:55]} 20. Re1 {[%clk 0:02:46]}  Kf7 {[%clk 0:01:46]} 21. Rd7+ {[%clk 0:02:45]}  Be7 {[%clk 0:01:46]} 22. Ba3 {[%clk 0:02:45]}  Rhe8 {[%clk 0:01:45]} 23. Rxb7 {[%clk 0:02:45]}  a5 {[%clk 0:01:41]} 24. g4 {[%clk 0:02:42]}  g6 {[%clk 0:01:39]} 25. g5 {[%clk 0:02:40]}  a4 {[%clk 0:01:38]} 26. Kb2 {[%clk 0:02:34]}  axb3 {[%clk 0:01:37]} 27. axb3 {[%clk 0:02:33]}  Kf8 {[%clk 0:01:22]} 28. Rxe7 {[%clk 0:02:32]}  Rxe7 {[%clk 0:01:21]} 29. Rxe6 {[%clk 0:02:31]}  Rxa3 {[%clk 0:01:20]} 30. Rf6+ {[%clk 0:02:31]}  Rf7 {[%clk 0:01:15]} 31. Rxf7+ {[%clk 0:02:31]}  Kxf7 {[%clk 0:01:15]} 32. Kxa3 {[%clk 0:02:32]}  h6 {[%clk 0:01:15]} 33. h4 {[%clk 0:02:31]}  hxg5 {[%clk 0:01:13]} 34. hxg5 {[%clk 0:02:31]}  Ke6 {[%clk 0:01:13]} 35. c4 {[%clk 0:02:31]}  Kd6 {[%clk 0:01:12]} 36. Kb4 {[%clk 0:02:32]} 1-0


[Site "https://www.chess.com"]

[Event "Titled Tuesday Blitz June 6 Early 2023"]
[White "De La Colina, Nicolas"]
[Black "Bashkansky, Ethan"]
[WhiteFideId "30946921"]
[BlackFideId "2071533"]
[WhiteElo "2046"]
[BlackElo "2294"]
[Result "1-0"]
[Round "3"]
[TimeControl "180+2"]
[Date "2023.06.06"]
[WhiteClock "0:02:19"]
[BlackClock "0:02:06"]
[Board "167"]

1. e4 {[%clk 0:02:39]}  c6 {[%clk 0:03:00]} 2. d4 {[%clk 0:02:38]}  d5 {[%clk 0:03:01]} 3. exd5 {[%clk 0:02:39]}  cxd5 {[%clk 0:03:01]} 4. Bd3 {[%clk 0:02:40]}  Nf6 {[%clk 0:03:01]} 5. c3 {[%clk 0:02:40]}  Nc6 {[%clk 0:03:02]} 6. Bf4 {[%clk 0:02:41]}  g6 {[%clk 0:03:01]} 7. Nf3 {[%clk 0:02:40]}  Bg4 {[%clk 0:03:00]} 8. Nbd2 {[%clk 0:02:39]}  Bg7 {[%clk 0:03:00]} 9. h3 {[%clk 0:02:39]}  Bf5 {[%clk 0:02:59]} 10. Be2 {[%clk 0:02:36]}  O-O {[%clk 0:02:58]} 11. O-O {[%clk 0:02:36]}  Kh8 {[%clk 0:02:38]} 12. Qb3 {[%clk 0:02:33]}  b6 {[%clk 0:02:31]} 13. Rfe1 {[%clk 0:02:30]}  Rc8 {[%clk 0:02:29]} 14. Ba6 {[%clk 0:02:27]}  Na5 {[%clk 0:02:26]} 15. Qa3 {[%clk 0:02:25]}  Rc6 {[%clk 0:02:09]} 16. Qxe7 {[%clk 0:02:18]}  Qxe7 {[%clk 0:02:06]} 17. Rxe7 {[%clk 0:02:19]} 1-0


[Site "https://www.chess.com"]

[Event "Titled Tuesday Blitz June 6 Early 2023"]
[White "Pg, Mohd Omar Ak Hira"]
[Black "Veiga, Jose Francisco R P Neves"]
[WhiteFideId "10500103"]
[BlackFideId "1930087"]
[WhiteElo "2167"]
[BlackElo "2319"]
[Result "0-1"]
[Round "3"]
[TimeControl "180+2"]
[Date "2023.06.06"]
[WhiteClock "0:00:16"]
[BlackClock "0:01:54"]
[Board "168"]

1. e4 {[%clk 0:03:00]}  Nc6 {[%clk 0:02:56]} 2. d4 {[%clk 0:02:59]}  d5 {[%clk 0:02:55]} 3. e5 {[%clk 0:02:15]}  Bf5 {[%clk 0:02:54]} 4. Nf3 {[%clk 0:02:04]}  e6 {[%clk 0:02:53]} 5. Bd3 {[%clk 0:02:03]}  Bxd3 {[%clk 0:02:52]} 6. Qxd3 {[%clk 0:02:02]}  f6 {[%clk 0:02:53]} 7. exf6 {[%clk 0:01:52]}  Nxf6 {[%clk 0:02:47]} 8. O-O {[%clk 0:01:49]}  Bd6 {[%clk 0:02:46]} 9. Nc3 {[%clk 0:01:37]}  O-O {[%clk 0:02:45]} 10. Nb5 {[%clk 0:01:37]}  e5 {[%clk 0:02:41]} 11. Nxd6 {[%clk 0:01:31]}  cxd6 {[%clk 0:02:41]} 12. dxe5 {[%clk 0:01:24]}  dxe5 {[%clk 0:02:41]} 13. Qb3 {[%clk 0:01:25]}  e4 {[%clk 0:02:37]} 14. Ng5 {[%clk 0:01:07]}  Qd7 {[%clk 0:02:36]} 15. Rd1 {[%clk 0:00:37]}  h6 {[%clk 0:02:18]} 16. Nh3 {[%clk 0:00:35]}  Ne5 {[%clk 0:02:18]} 17. Bf4 {[%clk 0:00:28]}  Nfg4 {[%clk 0:02:17]} 18. Bxe5 {[%clk 0:00:28]}  Nxe5 {[%clk 0:02:17]} 19. Qxd5+ {[%clk 0:00:27]}  Qxd5 {[%clk 0:02:17]} 20. Rxd5 {[%clk 0:00:28]}  Rae8 {[%clk 0:02:16]} 21. Re1 {[%clk 0:00:24]}  Nc4 {[%clk 0:01:53]} 22. b3 {[%clk 0:00:20]}  e3 {[%clk 0:01:53]} 23. bxc4 {[%clk 0:00:18]}  exf2+ {[%clk 0:01:53]} 24. Nxf2 {[%clk 0:00:16]}  Rxe1# {[%clk 0:01:54]} 0-1


[Site "https://www.chess.com"]

[Event "Titled Tuesday Blitz June 6 Early 2023"]
[White "Manukyan, Sargis A."]
[Black "Kuzmin, Ilya"]
[WhiteFideId "13303970"]
[BlackFideId "4153863"]
[WhiteElo "2187"]
[BlackElo "2093"]
[Result "1-0"]
[Round "3"]
[TimeControl "180+2"]
[Date "2023.06.06"]
[WhiteClock "0:01:49"]
[BlackClock "0:00:05"]
[Board "169"]

1. d4 {[%clk 0:03:00]}  Nf6 {[%clk 0:02:58]} 2. e3 {[%clk 0:03:01]}  c5 {[%clk 0:02:58]} 3. Nf3 {[%clk 0:03:02]}  d5 {[%clk 0:02:58]} 4. Be2 {[%clk 0:03:02]}  Bf5 {[%clk 0:02:56]} 5. O-O {[%clk 0:03:02]}  e6 {[%clk 0:02:56]} 6. dxc5 {[%clk 0:03:01]}  Bxc5 {[%clk 0:02:55]} 7. a3 {[%clk 0:03:02]}  Nc6 {[%clk 0:02:55]} 8. b4 {[%clk 0:03:02]}  Be7 {[%clk 0:02:54]} 9. Bb2 {[%clk 0:03:02]}  O-O {[%clk 0:02:54]} 10. Nbd2 {[%clk 0:03:03]}  a6 {[%clk 0:02:53]} 11. c4 {[%clk 0:03:03]}  dxc4 {[%clk 0:02:53]} 12. Nxc4 {[%clk 0:03:04]}  Ne4 {[%clk 0:02:32]} 13. Qb3 {[%clk 0:03:02]}  b5 {[%clk 0:02:26]} 14. Nce5 {[%clk 0:03:01]}  Nxe5 {[%clk 0:02:22]} 15. Bxe5 {[%clk 0:03:01]}  Bf6 {[%clk 0:02:06]} 16. Rfd1 {[%clk 0:02:59]}  Qe7 {[%clk 0:02:06]} 17. Bxf6 {[%clk 0:02:57]}  Qxf6 {[%clk 0:02:03]} 18. Rac1 {[%clk 0:02:58]}  Rac8 {[%clk 0:02:01]} 19. h3 {[%clk 0:02:57]}  Nc3 {[%clk 0:01:57]} 20. Nd4 {[%clk 0:02:39]}  Nxd1 {[%clk 0:01:44]} 21. Rxd1 {[%clk 0:02:39]}  Be4 {[%clk 0:01:41]} 22. a4 {[%clk 0:02:38]}  Bd5 {[%clk 0:01:25]} 23. Qa3 {[%clk 0:02:37]}  Qg6 {[%clk 0:01:07]} 24. Bf1 {[%clk 0:02:35]}  e5 {[%clk 0:00:57]} 25. Nxb5 {[%clk 0:02:32]}  Bxg2 {[%clk 0:00:50]} 26. Bxg2 {[%clk 0:02:32]}  axb5 {[%clk 0:00:50]} 27. a5 {[%clk 0:02:27]}  Rc2 {[%clk 0:00:47]} 28. a6 {[%clk 0:02:23]}  Qf6 {[%clk 0:00:38]} 29. Rf1 {[%clk 0:02:22]}  e4 {[%clk 0:00:19]} 30. a7 {[%clk 0:02:20]}  Qd8 {[%clk 0:00:16]} 31. Bxe4 {[%clk 0:02:19]}  Rc8 {[%clk 0:00:16]} 32. a8=Q {[%clk 0:02:18]}  Rxa8 {[%clk 0:00:16]} 33. Bxa8 {[%clk 0:02:18]}  Qxa8 {[%clk 0:00:16]} 34. Qxa8 {[%clk 0:02:18]}  Rxa8 {[%clk 0:00:16]} 35. Rc1 {[%clk 0:02:19]}  Kf8 {[%clk 0:00:16]} 36. Rc5 {[%clk 0:02:19]}  Rb8 {[%clk 0:00:16]} 37. Rc7 {[%clk 0:02:19]}  g6 {[%clk 0:00:16]} 38. Kg2 {[%clk 0:02:19]}  Kg7 {[%clk 0:00:17]} 39. Kg3 {[%clk 0:02:20]}  Kf6 {[%clk 0:00:17]} 40. h4 {[%clk 0:02:20]}  h5 {[%clk 0:00:17]} 41. Kf4 {[%clk 0:02:20]}  Ke6 {[%clk 0:00:18]} 42. e4 {[%clk 0:02:19]}  Rb6 {[%clk 0:00:17]} 43. f3 {[%clk 0:02:19]}  Kf6 {[%clk 0:00:16]} 44. e5+ {[%clk 0:02:17]}  Ke6 {[%clk 0:00:16]} 45. Ra7 {[%clk 0:02:16]}  f6 {[%clk 0:00:13]} 46. exf6 {[%clk 0:02:13]}  Kxf6 {[%clk 0:00:14]} 47. Rc7 {[%clk 0:02:12]}  Ke6 {[%clk 0:00:14]} 48. Kg5 {[%clk 0:02:12]}  Ke5 {[%clk 0:00:12]} 49. f4+ {[%clk 0:02:08]}  Kd4 {[%clk 0:00:12]} 50. Rc5 {[%clk 0:02:07]}  Ke4 {[%clk 0:00:10]} 51. Re5+ {[%clk 0:02:03]}  Kf3 {[%clk 0:00:10]} 52. Re7 {[%clk 0:02:00]}  Kg3 {[%clk 0:00:09]} 53. Re3+ {[%clk 0:01:59]}  Kf2 {[%clk 0:00:09]} 54. Rc3 {[%clk 0:02:00]}  Ke2 {[%clk 0:00:07]} 55. f5 {[%clk 0:01:52]}  gxf5 {[%clk 0:00:07]} 56. Kxf5 {[%clk 0:01:53]}  Kd2 {[%clk 0:00:05]} 57. Rc5 {[%clk 0:01:52]}  Kd3 {[%clk 0:00:04]} 58. Kg5 {[%clk 0:01:52]}  Ke4 {[%clk 0:00:03]} 59. Kxh5 {[%clk 0:01:52]}  Kf4 {[%clk 0:00:04]} 60. Rd5 {[%clk 0:01:49]}  Ke4 {[%clk 0:00:03]} 61. Rg5 {[%clk 0:01:48]}  Kf4 {[%clk 0:00:03]} 62. Rc5 {[%clk 0:01:47]}  Ke4 {[%clk 0:00:04]} 63. Kg5 {[%clk 0:01:48]}  Kd4 {[%clk 0:00:03]} 64. h5 {[%clk 0:01:49]}  Rb8 {[%clk 0:00:03]} 65. h6 {[%clk 0:01:49]}  Rg8+ {[%clk 0:00:03]} 66. Kf6 {[%clk 0:01:49]}  Rg1 {[%clk 0:00:03]} 67. h7 {[%clk 0:01:49]}  Rf1+ {[%clk 0:00:03]} 68. Kg6 {[%clk 0:01:50]}  Rg1+ {[%clk 0:00:03]} 69. Rg5 {[%clk 0:01:49]}  Rh1 {[%clk 0:00:04]} 70. Rh5 {[%clk 0:01:49]}  Rg1+ {[%clk 0:00:05]} 71. Kf5 {[%clk 0:01:49]} 1-0


[Site "https://www.chess.com"]

[Event "Titled Tuesday Blitz June 6 Early 2023"]
[White "Tokman, Ariel"]
[Black "Martin, Lewis"]
[WhiteFideId "117420"]
[BlackFideId "410551"]
[WhiteElo "2263"]
[BlackElo "2145"]
[Result "1-0"]
[Round "3"]
[TimeControl "180+2"]
[Date "2023.06.06"]
[WhiteClock "0:01:36"]
[BlackClock "0:01:49"]
[Board "172"]

1. f4 {[%clk 0:03:00]}  c5 {[%clk 0:02:59]} 2. Nf3 {[%clk 0:03:01]}  Nc6 {[%clk 0:02:59]} 3. g3 {[%clk 0:03:01]}  e6 {[%clk 0:02:58]} 4. Bg2 {[%clk 0:03:02]}  Nf6 {[%clk 0:02:58]} 5. O-O {[%clk 0:03:03]}  h5 {[%clk 0:02:58]} 6. d3 {[%clk 0:03:03]}  h4 {[%clk 0:02:54]} 7. Nxh4 {[%clk 0:03:00]}  Rxh4 {[%clk 0:02:54]} 8. gxh4 {[%clk 0:03:01]}  d5 {[%clk 0:02:52]} 9. e4 {[%clk 0:02:59]}  dxe4 {[%clk 0:02:50]} 10. dxe4 {[%clk 0:02:59]}  Qb6 {[%clk 0:02:48]} 11. Nd2 {[%clk 0:02:50]}  Bd7 {[%clk 0:02:47]} 12. Nc4 {[%clk 0:02:49]}  Qc7 {[%clk 0:02:40]} 13. e5 {[%clk 0:02:39]}  Ng8 {[%clk 0:02:37]} 14. Be3 {[%clk 0:02:34]}  O-O-O {[%clk 0:02:36]} 15. Nd6+ {[%clk 0:02:35]}  Bxd6 {[%clk 0:02:36]} 16. Qxd6 {[%clk 0:02:31]}  Qxd6 {[%clk 0:02:36]} 17. exd6 {[%clk 0:02:31]}  b6 {[%clk 0:02:35]} 18. a4 {[%clk 0:02:26]}  a5 {[%clk 0:02:31]} 19. c3 {[%clk 0:02:07]}  Nh6 {[%clk 0:02:29]} 20. Ra3 {[%clk 0:01:56]}  Nf5 {[%clk 0:02:28]} 21. Bf2 {[%clk 0:01:56]}  Nxd6 {[%clk 0:02:25]} 22. Rd1 {[%clk 0:01:50]}  Nc4 {[%clk 0:02:23]} 23. Ra2 {[%clk 0:01:48]}  Be8 {[%clk 0:02:15]} 24. Rxd8+ {[%clk 0:01:49]}  Nxd8 {[%clk 0:02:12]} 25. b3 {[%clk 0:01:50]}  Nd6 {[%clk 0:02:11]} 26. Rd2 {[%clk 0:01:47]}  Nf5 {[%clk 0:02:11]} 27. b4 {[%clk 0:01:38]}  axb4 {[%clk 0:01:59]} 28. cxb4 {[%clk 0:01:39]}  Bxa4 {[%clk 0:01:54]} 29. bxc5 {[%clk 0:01:37]}  bxc5 {[%clk 0:01:54]} 30. Bxc5 {[%clk 0:01:37]}  Nxh4 {[%clk 0:01:51]} 31. Be7 {[%clk 0:01:37]}  Nxg2 {[%clk 0:01:49]} 32. Rxd8+ {[%clk 0:01:36]} 1-0


[Site "https://www.chess.com"]

[Event "Titled Tuesday Blitz June 6 Early 2023"]
[White "Kokoszczynski, Jan"]
[Black "agvania123"]
[WhiteFideId "1174460"]
[WhiteElo "2139"]
[BlackElo "2232"]
[Result "1/2-1/2"]
[Round "3"]
[TimeControl "180+2"]
[Date "2023.06.06"]
[WhiteClock "0:00:13"]
[BlackClock "0:00:14"]
[Board "177"]

1. Nf3 {[%clk 0:02:53]}  Nf6 {[%clk 0:02:55]} 2. e3 {[%clk 0:02:54]}  e6 {[%clk 0:02:55]} 3. c4 {[%clk 0:02:54]}  b6 {[%clk 0:02:55]} 4. b3 {[%clk 0:02:54]}  Bb7 {[%clk 0:02:55]} 5. Bb2 {[%clk 0:02:54]}  Be7 {[%clk 0:02:56]} 6. Nc3 {[%clk 0:02:55]}  O-O {[%clk 0:02:56]} 7. Qc2 {[%clk 0:02:55]}  c5 {[%clk 0:02:56]} 8. Be2 {[%clk 0:02:53]}  d5 {[%clk 0:02:55]} 9. cxd5 {[%clk 0:02:51]}  Nxd5 {[%clk 0:02:53]} 10. a3 {[%clk 0:02:51]}  Nf6 {[%clk 0:02:50]} 11. O-O {[%clk 0:02:50]}  Nc6 {[%clk 0:02:50]} 12. Rfd1 {[%clk 0:02:50]}  Rc8 {[%clk 0:02:50]} 13. Rac1 {[%clk 0:02:51]}  a6 {[%clk 0:02:41]} 14. Qb1 {[%clk 0:02:50]}  Qc7 {[%clk 0:02:40]} 15. d3 {[%clk 0:02:13]}  Rfd8 {[%clk 0:02:36]} 16. Rd2 {[%clk 0:02:13]}  Rd7 {[%clk 0:02:32]} 17. Rcd1 {[%clk 0:02:13]}  Rcd8 {[%clk 0:02:32]} 18. Qa1 {[%clk 0:02:13]}  Qb8 {[%clk 0:02:27]} 19. Na4 {[%clk 0:02:05]}  Qa7 {[%clk 0:02:21]} 20. d4 {[%clk 0:02:00]}  b5 {[%clk 0:02:20]} 21. Nxc5 {[%clk 0:01:59]}  Bxc5 {[%clk 0:02:19]} 22. dxc5 {[%clk 0:02:00]}  Rxd2 {[%clk 0:02:18]} 23. Rxd2 {[%clk 0:02:01]}  Rxd2 {[%clk 0:02:18]} 24. Nxd2 {[%clk 0:02:02]}  Qxc5 {[%clk 0:02:14]} 25. Bxf6 {[%clk 0:01:27]}  gxf6 {[%clk 0:02:06]} 26. Qxf6 {[%clk 0:01:28]}  Qc1+ {[%clk 0:02:04]} 27. Nf1 {[%clk 0:01:27]}  Qxa3 {[%clk 0:02:04]} 28. h4 {[%clk 0:01:12]}  Qe7 {[%clk 0:02:03]} 29. Qf4 {[%clk 0:01:11]}  e5 {[%clk 0:01:52]} 30. Qg4+ {[%clk 0:01:07]}  Kf8 {[%clk 0:01:48]} 31. Ng3 {[%clk 0:01:07]}  Qe6 {[%clk 0:01:34]} 32. Qe4 {[%clk 0:00:34]}  Nd8 {[%clk 0:01:15]} 33. Qxh7 {[%clk 0:00:26]}  Qxb3 {[%clk 0:01:11]} 34. h5 {[%clk 0:00:18]}  Qd5 {[%clk 0:00:51]} 35. Bf3 {[%clk 0:00:12]}  Qe6 {[%clk 0:00:48]} 36. Nf5 {[%clk 0:00:09]}  Qf6 {[%clk 0:00:43]} 37. Bxb7 {[%clk 0:00:05]}  Nxb7 {[%clk 0:00:44]} 38. h6 {[%clk 0:00:02]}  Nd6 {[%clk 0:00:37]} 39. Ng3 {[%clk 0:00:02]}  b4 {[%clk 0:00:16]} 40. Nh5 {[%clk 0:00:03]}  Qg6 {[%clk 0:00:15]} 41. Qxg6 {[%clk 0:00:03]}  fxg6 {[%clk 0:00:15]} 42. h7 {[%clk 0:00:04]}  Nf7 {[%clk 0:00:10]} 43. Nf6 {[%clk 0:00:03]}  b3 {[%clk 0:00:10]} 44. Ne4 {[%clk 0:00:03]}  b2 {[%clk 0:00:10]} 45. Nc3 {[%clk 0:00:04]}  Kg7 {[%clk 0:00:10]} 46. Kf1 {[%clk 0:00:04]}  Nd6 {[%clk 0:00:10]} 47. Ke2 {[%clk 0:00:05]}  Nb5 {[%clk 0:00:10]} 48. Nb1 {[%clk 0:00:06]}  a5 {[%clk 0:00:10]} 49. Kd3 {[%clk 0:00:07]}  a4 {[%clk 0:00:11]} 50. Kc4 {[%clk 0:00:07]}  a3 {[%clk 0:00:11]} 51. Kb3 {[%clk 0:00:07]}  Kxh7 {[%clk 0:00:08]} 52. Ka2 {[%clk 0:00:07]}  Kg7 {[%clk 0:00:08]} 53. Nxa3 {[%clk 0:00:07]}  Nxa3 {[%clk 0:00:07]} 54. Kxb2 {[%clk 0:00:08]}  Nc4+ {[%clk 0:00:08]} 55. Kc3 {[%clk 0:00:09]}  Nd6 {[%clk 0:00:08]} 56. Kd3 {[%clk 0:00:10]}  Kf6 {[%clk 0:00:09]} 57. Ke2 {[%clk 0:00:10]}  Kf5 {[%clk 0:00:09]} 58. f3 {[%clk 0:00:11]}  e4 {[%clk 0:00:09]} 59. Kf2 {[%clk 0:00:11]}  exf3 {[%clk 0:00:09]} 60. gxf3 {[%clk 0:00:12]}  g5 {[%clk 0:00:10]} 61. Kg3 {[%clk 0:00:12]}  Nc4 {[%clk 0:00:09]} 62. f4 {[%clk 0:00:10]}  g4 {[%clk 0:00:09]} 63. e4+ {[%clk 0:00:10]}  Kxe4 {[%clk 0:00:09]} 64. Kxg4 {[%clk 0:00:11]}  Ne3+ {[%clk 0:00:10]} 65. Kg5 {[%clk 0:00:11]}  Nf5 {[%clk 0:00:11]} 66. Kh5 {[%clk 0:00:12]}  Ne3 {[%clk 0:00:11]} 67. Kg6 {[%clk 0:00:12]}  Nf5 {[%clk 0:00:12]} 68. Kf6 {[%clk 0:00:12]}  Ne3 {[%clk 0:00:13]} 69. f5 {[%clk 0:00:13]}  Nxf5 {[%clk 0:00:14]} 1/2-1/2


[Site "https://www.chess.com"]